bitfinex/quotes_SOLUSD_20241225
["timestamp","ask_amount","ask_price","bid_price","bid_amount"]
[1735134465008,9.89248198,196.93,196.86,9.89248198]
[1735134465228,9.89248198,196.93,196.85,12.19823645]
[1735134465427,9.89248198,196.92,196.85,11.43638198]
[1735134469728,9.89248198,196.92,196.85,1.5439]
[1735134470111,9.89248198,196.92,196.85,11.43638198]
[1735134471334,9.89248198,196.92,196.85,1.5439]
[1735134473443,9.89248198,196.92,196.83,6.3804]
[1735134473444,9.89248198,196.9,196.82,9.89248198]
[1735134474416,9.89248198,196.89,196.8,1.5457]
[1735134474615,9.89248198,196.88,196.81,9.89248198]
[1735134474816,0.12549,196.93,196.8,1.5457]
[1735134474817,9.89248198,196.86,196.8,1.5457]
[1735134475741,9.89248198,196.87,196.8,11.43818198]
[1735134476443,12.6947,196.94,196.83,9.89248198]
[1735134476614,20.0,196.93,196.85,9.89248198]
[1735134476818,9.89248198,196.92,196.85,9.89248198]
[1735134477031,9.89248198,196.92,196.84,9.89248198]
[1735134477418,9.89248198,196.91,196.83,9.89248198]
[1735134478241,9.89248198,196.91,196.84,9.89248198]
[1735134479747,9.89248198,196.91,196.83,9.89248198]
[1735134480442,20.0,196.94,196.83,9.89248198]
[1735134480625,9.89248198,196.91,196.83,9.89248198]
[1735134488150,9.89248198,196.9,196.83,9.89248198]
[1735134492057,9.89248198,196.9,196.81,10.65452059]
[1735134492233,9.89248198,196.86,196.77,0.7619378]
[1735134492550,9.89248198,196.83,196.75,12.16849159]
[1735134492756,9.89248198,196.83,196.76,9.89248198]
[1735134493051,9.89248198,196.84,196.76,9.89248198]
[1735134493236,9.89248198,196.84,196.77,9.89248198]
[1735134493437,9.89248198,196.85,196.77,9.89248198]
[1735134493629,9.89248198,196.85,196.78,9.89248198]
[1735134493837,9.89248198,196.86,196.79,9.89248198]
[1735134494052,9.89248198,196.87,196.8,9.89248198]
[1735134494251,9.89248198,196.88,196.81,9.89248198]
[1735134494930,9.89248198,196.87,196.8,9.89248198]
[1735134496941,9.89248198,196.87,196.79,29.89248198]
[1735134497630,9.89248198,196.86,196.79,29.89248198]
[1735134497852,9.89248198,196.84,196.74,0.76207486]
[1735134498059,9.89248198,196.84,196.76,9.89248198]
[1735134498237,9.89248198,196.83,196.76,9.89248198]
[1735134499743,9.89248198,196.84,196.76,9.89248198]
[1735134501879,9.89248198,196.84,196.76,10.65462118]
[1735134503154,9.89248198,196.84,196.77,9.89248198]
[1735134503358,11.43078198,196.86,196.78,9.89248198]
[1735134506241,9.89248198,196.84,196.76,29.89248198]
[1735134506754,1.5383,196.86,196.76,29.89248198]
[1735134507056,9.89248198,196.85,196.77,0.7621579]
[1735134507256,9.89248198,196.85,196.76,30.65456765]
[1735134511362,9.89248198,196.85,196.78,9.89248198]
[1735134513471,9.89248198,196.85,196.76,30.65456765]
[1735134514639,9.89248198,196.85,196.78,9.89248198]
[1735134514850,9.89248198,196.85,196.78,10.65450818]
[1735134516562,9.89248198,196.85,196.78,9.89248198]
[1735134516890,9.89248198,196.85,196.76,20.76203057]
[1735134517068,9.89248198,196.81,196.73,20.0]
[1735134517238,9.89248198,196.81,196.74,9.89248198]
[1735134517444,9.89248198,196.82,196.74,9.89248198]
[1735134517643,9.89248198,196.83,196.75,9.89248198]
[1735134517867,9.89248198,196.83,196.75,10.65465491]
[1735134518250,6.0669,196.84,196.77,9.89248198]
[1735134518450,1.5383,196.86,196.79,9.89248198]
[1735134518651,1.5383,196.86,196.8,10.65445549]
[1735134519646,1.5383,196.86,196.8,0.76197351]
[1735134520768,11.43078198,196.86,196.79,20.0]
[1735134521273,9.89248198,196.85,196.79,20.0]
[1735134524878,9.89248198,196.85,196.77,10.65447019]
[1735134525651,1.5383,196.86,196.77,10.65447019]
[1735134525868,9.89248198,196.85,196.77,10.65447019]
[1735134528260,9.89248198,196.85,196.77,9.89248198]
[1735134528579,9.89248198,196.85,196.77,10.65462034]
[1735134529480,9.89248198,196.85,196.77,9.89248198]
[1735134529855,9.89248198,196.85,196.74,0.76207647]
[1735134530159,9.89248198,196.83,196.75,9.89248198]
[1735134531073,9.89248198,196.8,196.73,9.89248198]
[1735134531577,9.89248198,196.81,196.73,9.89248198]
[1735134532183,16.46998198,196.82,196.74,9.89248198]
[1735134532687,1.5383,196.86,196.79,9.89248198]
[1735134533978,1.5383,196.86,196.8,9.89248198]
[1735134534289,1.6495,196.91,196.82,9.89248198]
[1735134534455,11.54198198,196.91,196.83,9.89248198]
[1735134534655,9.89248198,196.89,196.82,9.89248198]
[1735134535001,9.89248198,196.89,196.81,9.89248198]
[1735134535284,9.89248198,196.87,196.79,9.89248198]
[1735134535780,9.89248198,196.87,196.8,29.89248198]
[1735134536259,9.89248198,196.88,196.81,9.89248198]
[1735134536954,9.89248198,196.9,196.82,10.65441188]
[1735134537180,9.89248198,196.9,196.82,9.89248198]
[1735134538770,9.89248198,196.9,196.82,10.65437258]
[1735134539886,9.89248198,196.9,196.83,9.89248198]
[1735134540661,9.89248198,196.9,196.82,9.89248198]
[1735134541289,9.89248198,196.89,196.81,10.65435663]
[1735134541864,9.89248198,196.9,196.82,9.89248198]
[1735134542266,9.89248198,196.89,196.81,10.65435663]
[1735134542583,9.89248198,196.84,196.78,20.0]
[1735134543488,9.83133898,196.84,196.78,20.0]
[1735134543682,9.89248198,196.85,196.78,29.89248198]
[1735134543986,9.89248198,196.84,196.77,9.89248198]
[1735134544484,9.89248198,196.83,196.75,0.76212581]
[1735134544688,9.89248198,196.81,196.74,9.89248198]
[1735134545082,1.6428,196.83,196.71,0.76227093]
[1735134545083,9.89248198,196.79,196.71,0.76227093]
[1735134545271,9.89248198,196.79,196.71,10.65475291]
[1735134545788,9.89248198,196.77,196.7,9.89248198]
[1735134546491,9.89248198,196.75,196.69,9.89248198]
[1735134546991,9.89248198,196.76,196.69,9.89248198]
[1735134548190,6.0935,196.76,196.66,0.76238781]
[1735134548486,9.89248198,196.74,196.67,9.89248198]
[1735134548677,9.89248198,196.75,196.68,9.89248198]
[1735134550694,6.0935,196.76,196.65,0.76251097]
[1735134550695,15.98598198,196.76,196.69,9.89248198]
[1735134550871,9.89248198,196.75,196.68,9.89248198]
[1735134554800,15.98598198,196.76,196.69,9.89248198]
[1735134555599,15.98598198,196.76,196.64,0.76252499]
[1735134555600,9.89248198,196.75,196.68,9.89248198]
[1735134556900,6.0935,196.76,196.68,9.89248198]
[1735134557100,6.0935,196.76,196.69,9.89248198]
[1735134560703,6.0935,196.76,196.71,9.89248198]
[1735134564987,15.98598198,196.76,196.7,9.89248198]
[1735134569391,15.98598198,196.76,196.66,0.76244125]
[1735134569392,9.89248198,196.74,196.66,0.76244125]
[1735134569591,9.89248198,196.73,196.66,9.89248198]
[1735134569794,9.89248198,196.74,196.67,9.89248198]
[1735134569997,9.89248198,196.75,196.68,9.89248198]
[1735134570509,17.61298198,196.76,196.68,9.89248198]
[1735134570825,9.89248198,196.75,196.68,9.89248198]
[1735134571006,9.89248198,196.74,196.67,9.89248198]
[1735134571591,7.7205,196.76,196.7,9.89248198]
[1735134573216,9.89248198,196.79,196.72,9.89248198]
[1735134573518,15.96918198,196.8,196.72,9.89248198]
[1735134574091,9.89248198,196.79,196.72,9.89248198]
[1735134574609,15.96918198,196.8,196.72,9.89248198]
[1735134575512,15.96918198,196.8,196.68,0.88781427]
[1735134575513,15.96918198,196.8,196.73,9.89248198]
[1735134576018,6.0767,196.8,196.74,9.89248198]
[1735134576197,15.96918198,196.8,196.72,9.89248198]
[1735134577021,9.89248198,196.79,196.72,9.89248198]
[1735134578938,15.96918198,196.8,196.72,9.89248198]
[1735134579149,1.627,196.81,196.76,9.89248198]
[1735134579446,9.89248198,196.84,196.77,9.89248198]
[1735134579609,23.776884,196.83,196.77,9.89248198]
[1735134579819,23.776884,196.83,196.76,9.89248198]
[1735134581034,23.776884,196.83,196.74,0.76216643]
[1735134581334,23.776884,196.82,196.76,9.89248198]
[1735134582431,33.66936598,196.82,196.75,9.89248198]
[1735134582603,33.66936598,196.82,196.74,29.89248198]
[1735134583435,33.66936598,196.82,196.75,9.89248198]
[1735134583901,33.66936598,196.82,196.74,29.89248198]
[1735134585132,23.776884,196.82,196.76,9.89248198]
[1735134585337,23.776884,196.82,196.75,9.89248198]
[1735134586128,33.66936598,196.82,196.75,9.89248198]
[1735134587302,23.776884,196.82,196.75,9.89248198]
[1735134587726,8.0103,196.85,196.76,9.89248198]
[1735134588023,23.776884,196.84,196.77,9.89248198]
[1735134588238,33.66936598,196.84,196.77,9.89248198]
[1735134588816,23.776884,196.84,196.78,9.89248198]
[1735134590612,33.66936598,196.84,196.77,9.89248198]
[1735134590919,9.89248198,196.8,196.74,20.0]
[1735134591124,9.89248198,196.77,196.7,9.89248198]
[1735134591422,33.66936598,196.76,196.69,9.89248198]
[1735134591626,23.776884,196.76,196.7,9.89248198]
[1735134591809,23.776884,196.77,196.71,9.89248198]
[1735134592722,7.7334,196.78,196.72,9.89248198]
[1735134592932,7.7334,196.78,196.74,9.89248198]
[1735134594032,7.7334,196.78,196.73,9.89248198]
[1735134596725,7.7334,196.78,196.74,9.89248198]
[1735134597844,7.7334,196.78,196.73,9.89248198]
[1735134598931,7.7334,196.78,196.7,0.76231826]
[1735134598932,7.7334,196.78,196.74,9.89248198]
[1735134599722,7.7334,196.78,196.73,9.89248198]
[1735134600063,7.7334,196.78,196.74,9.89248198]
[1735134600555,7.7334,196.78,196.72,20.0]
[1735134600768,7.7334,196.78,196.72,9.89248198]
[1735134600923,33.66936598,196.77,196.7,9.89248198]
[1735134601843,7.7334,196.78,196.71,9.89248198]
[1735134602051,23.776884,196.77,196.71,9.89248198]
[1735134602232,23.776884,196.77,196.72,9.89248198]
[1735134603251,23.776884,196.77,196.71,9.89248198]
[1735134606364,7.7334,196.78,196.73,9.89248198]
[1735134608058,7.7334,196.78,196.74,9.89248198]
[1735134608270,7.7334,196.78,196.75,9.89248198]
[1735134608758,6.1897,196.78,196.75,9.89248198]
[1735134608940,7.7334,196.83,196.77,9.89248198]
[1735134609263,7.7334,196.83,196.78,9.89248198]
[1735134609452,17.62588198,196.83,196.76,9.89248198]
[1735134610443,17.62588198,196.83,196.75,9.89248198]
[1735134611458,9.89248198,196.81,196.73,9.89248198]
[1735134611754,23.776884,196.82,196.75,9.89248198]
[1735134611961,7.7334,196.83,196.76,9.89248198]
[1735134613545,7.7334,196.83,196.78,9.89248198]
[1735134615852,17.62588198,196.88,196.81,9.89248198]
[1735134616056,23.776884,196.87,196.81,9.89248198]
[1735134616455,23.776884,196.87,196.8,9.89248198]
[1735134616943,23.776884,196.87,196.79,9.89248198]
[1735134616944,9.89248198,196.86,196.79,9.89248198]
[1735134617762,9.89248198,196.86,196.78,9.89248198]
[1735134618263,9.89248198,196.86,196.79,9.89248198]
[1735134619134,33.66936598,196.87,196.8,9.89248198]
[1735134620240,9.89248198,196.86,196.79,9.89248198]
[1735134620667,23.776884,196.84,196.76,20.0]
[1735134620846,23.776884,196.84,196.77,9.89248198]
[1735134621045,33.66936598,196.84,196.77,9.89248198]
[1735134623563,7.7334,196.88,196.78,9.89248198]
[1735134623767,7.7334,196.88,196.82,9.89248198]
[1735134623967,7.7334,196.88,196.84,9.89248198]
[1735134624767,7.7334,196.88,196.83,9.89248198]
[1735134625473,17.90668198,196.93,196.86,9.89248198]
[1735134626267,8.0142,196.93,196.87,9.89248198]
[1735134626742,8.0142,196.93,196.88,9.89248198]
[1735134626947,8.0142,196.93,196.89,9.89248198]
[1735134627146,9.89248198,196.96,196.89,9.89248198]
[1735134627356,1.6495,196.97,196.92,9.89248198]
[1735134627556,1.6495,196.97,196.93,9.89248198]
[1735134628074,1.6495,196.97,196.91,9.89248198]
[1735134628246,1.6495,196.97,196.92,9.89248198]
[1735134628567,6.3647,197.0,196.93,0.76153957]
[1735134628772,6.3647,197.0,196.95,9.89248198]
[1735134629658,6.3647,197.0,196.93,29.89248198]
[1735134629852,16.25718198,197.0,196.93,29.89248198]
[1735134630049,9.89248198,196.99,196.93,20.0]
[1735134630353,9.89248198,196.99,196.92,9.89248198]
[1735134630660,16.25718198,197.0,196.93,9.89248198]
[1735134631366,16.25718198,197.0,196.92,9.89248198]
[1735134631564,33.66936598,196.99,196.91,9.89248198]
[1735134631769,33.66936598,196.99,196.9,9.89248198]
[1735134631770,9.89248198,196.97,196.9,9.89248198]
[1735134631952,9.89248198,196.96,196.89,29.89248198]
[1735134632366,23.776884,196.99,196.92,9.89248198]
[1735134632561,33.66936598,196.99,196.91,9.89248198]
[1735134632761,9.89248198,196.98,196.91,9.89248198]
[1735134634671,16.25718198,197.0,196.93,9.89248198]
[1735134634978,6.3647,197.0,196.93,9.89248198]
[1735134635161,16.25718198,197.0,196.93,9.89248198]
[1735134637678,9.89248198,196.99,196.92,9.89248198]
[1735134638058,9.89248198,196.99,196.91,9.89248198]
[1735134640172,9.89248198,196.97,196.88,20.0]
[1735134640379,9.89248198,196.96,196.89,9.89248198]
[1735134640679,23.776884,196.95,196.89,9.89248198]
[1735134641861,35.18236598,196.95,196.88,9.89248198]
[1735134642267,25.289884,196.95,196.89,9.89248198]
[1735134643080,1.513,196.95,196.92,9.89248198]
[1735134643462,1.513,196.95,196.91,9.89248198]
[1735134644662,1.513,196.95,196.92,9.89248198]
[1735134645185,1.513,196.95,196.91,9.89248198]
[1735134645787,1.513,196.95,196.92,9.89248198]
[1735134646885,23.776884,196.99,196.92,9.89248198]
[1735134647093,6.3647,197.0,196.93,9.89248198]
[1735134647267,6.3647,197.0,196.94,9.89248198]
[1735134647457,6.3647,197.0,196.96,9.89248198]
[1735134649367,1.513,197.02,196.97,9.89248198]
[1735134650188,9.89248198,197.04,196.97,9.89248198]
[1735134650377,16.07158198,197.06,196.98,9.89248198]
[1735134650595,6.1791,197.06,196.99,9.89248198]
[1735134650781,23.776884,197.05,196.99,9.89248198]
[1735134651402,23.776884,197.05,196.98,9.89248198]
[1735134652175,23.776884,197.05,197.0,9.89248198]
[1735134652490,23.776884,197.05,196.99,9.89248198]
[1735134654588,16.07158198,197.06,196.99,9.89248198]
[1735134656665,6.1791,197.06,196.99,9.89248198]
[1735134658068,9.89248198,197.05,196.98,29.89248198]
[1735134658294,33.66936598,197.04,196.96,9.89248198]
[1735134661874,33.66936598,197.04,196.97,9.89248198]
[1735134662112,23.776884,197.04,196.98,9.89248198]
[1735134662775,23.776884,197.04,196.97,9.89248198]
[1735134663175,23.776884,197.04,196.98,9.89248198]
[1735134665411,23.776884,197.04,196.96,9.89248198]
[1735134666314,9.89248198,197.03,196.92,12.6953]
[1735134666519,23.776884,197.02,196.94,9.89248198]
[1735134668200,1.5991,197.01,196.94,9.89248198]
[1735134668388,11.49158198,197.01,196.94,9.89248198]
[1735134668789,1.5991,197.01,196.94,9.89248198]
[1735134670407,1.5991,197.01,196.96,9.89248198]
[1735134671281,1.5991,197.01,196.97,9.89248198]
[1735134671890,6.1791,197.06,196.99,9.89248198]
[1735134672101,6.1791,197.06,197.0,9.89248198]
[1735134676433,6.1791,197.06,196.98,20.0]
[1735134676599,6.1791,197.06,196.98,29.89248198]
[1735134678435,6.1791,197.06,197.0,9.89248198]
[1735134679509,6.1791,197.06,196.98,20.0]
[1735134679510,6.1791,197.06,197.01,9.89248198]
[1735134679911,6.1791,197.06,197.0,29.89248198]
[1735134680312,6.1791,197.06,197.01,9.89248198]
[1735134681224,1.5991,197.08,197.01,9.89248198]
[1735134681433,1.5991,197.08,197.03,9.89248198]
[1735134681902,6.2061,197.11,197.05,9.89248198]
[1735134683322,1.6026,197.13,197.07,9.89248198]
[1735134683622,1.6026,197.13,197.08,9.89248198]
[1735134684311,9.89248198,197.12,197.05,9.89248198]
[1735134685137,11.49508198,197.13,197.06,9.89248198]
[1735134685305,23.776884,197.12,197.06,9.89248198]
[1735134685802,23.7157379,197.12,197.06,9.89248198]
[1735134686215,1.6026,197.13,197.07,9.89248198]
[1735134686603,1.6026,197.13,197.09,9.89248198]
[1735134687128,6.2061,197.16,197.1,9.89248198]
[1735134687320,6.2061,197.16,197.09,9.89248198]
[1735134688408,16.09858198,197.16,197.08,9.89248198]
[1735134695742,16.09858198,197.16,197.05,20.0]
[1735134695946,9.89248198,197.14,197.07,29.89248198]
[1735134696127,23.776884,197.13,197.07,20.0]
[1735134696820,23.776884,197.13,197.04,20.0]
[1735134696821,33.66936598,197.13,197.04,20.0]
[1735134697159,33.66936598,197.13,197.06,9.89248198]
[1735134697432,23.776884,197.13,197.06,9.89248198]
[1735134697733,23.776884,197.13,197.07,9.89248198]
[1735134697911,23.776884,197.13,197.06,9.89248198]
[1735134698332,33.66936598,197.13,197.05,9.89248198]
[1735134698505,33.66936598,197.13,196.99,0.76110968]
[1735134698506,23.776884,197.11,196.99,0.76110968]
[1735134698706,9.89248198,197.06,196.95,2.42275864]
[1735134699016,23.776884,197.05,196.98,9.89248198]
[1735134699325,23.776884,197.05,196.99,9.89248198]
[1735134699621,6.1151,197.1,196.99,9.89248198]
[1735134699824,9.89248198,197.07,196.96,0.12549]
[1735134700130,23.776884,197.06,196.99,9.89248198]
[1735134700325,33.66936598,197.04,196.94,0.76139325]
[1735134700529,33.66936598,197.04,196.9,6.0193]
[1735134700530,33.66936598,197.02,196.95,9.89248198]
[1735134700730,6.1151,197.04,196.97,9.89248198]
[1735134701117,6.1151,197.04,196.99,9.89248198]
[1735134701820,6.1151,197.04,197.0,9.89248198]
[1735134702318,6.1151,197.04,196.99,9.89248198]
[1735134703335,6.1151,197.04,196.98,29.89248198]
[1735134703635,6.1151,197.04,196.93,0.76130051]
[1735134703826,33.66936598,197.03,196.95,9.89248198]
[1735134704313,33.66936598,197.03,196.96,9.89248198]
[1735134705917,33.66936598,197.03,196.95,9.89248198]
[1735134707148,23.776884,197.0,196.94,9.89248198]
[1735134707328,23.776884,197.0,196.93,9.89248198]
[1735134707642,23.776884,197.0,196.94,9.89248198]
[1735134708218,23.776884,197.0,196.95,9.89248198]
[1735134708542,23.776884,197.01,196.95,9.89248198]
[1735134712345,16.41428198,196.98,196.91,9.89248198]
[1735134713028,6.5218,196.98,196.91,9.89248198]
[1735134713229,6.5218,196.98,196.93,9.89248198]
[1735134713831,1.6444,196.99,196.96,9.89248198]
[1735134714048,6.5218,197.03,196.96,9.89248198]
[1735134715050,23.776884,197.02,196.96,9.89248198]
[1735134716147,23.776884,197.02,196.95,9.89248198]
[1735134716333,33.66936598,197.02,196.94,9.89248198]
[1735134716528,23.776884,197.0,196.93,29.89248198]
[1735134721252,23.776884,197.0,196.93,9.89248198]
[1735134721454,9.89248198,196.97,196.87,12.6986]
[1735134721757,30.298684,196.96,196.89,9.89248198]
[1735134722133,30.298684,196.96,196.87,12.6986]
[1735134722334,30.298684,196.96,196.89,9.89248198]
[1735134723342,30.298684,196.96,196.84,13.46219489]
[1735134723343,40.19116598,196.96,196.88,9.89248198]
[1735134723555,9.89248198,196.95,196.88,9.89248198]
[1735134724957,23.776884,196.94,196.87,9.89248198]
[1735134725134,23.776884,196.94,196.87,29.89248198]
[1735134725536,9.89248198,196.93,196.86,9.89248198]
[1735134725738,23.776884,196.92,196.86,9.89248198]
[1735134725955,23.776884,196.94,196.89,9.89248198]
[1735134726142,23.776884,196.95,196.89,9.89248198]
[1735134728364,6.5218,196.96,196.92,9.89248198]
[1735134728565,6.5218,196.96,196.93,9.89248198]
[1735134728865,1.6444,196.99,196.95,9.89248198]
[1735134729166,6.2613,197.01,196.98,9.89248198]
[1735134729370,6.2613,197.01,196.97,9.89248198]
[1735134729550,6.2613,197.01,196.95,9.89248198]
[1735134729752,6.2613,197.01,196.97,9.89248198]
[1735134729950,1.59,197.04,196.99,9.89248198]
[1735134730165,1.59,197.04,197.0,9.89248198]
[1735134730873,1.59,197.04,196.99,9.89248198]
[1735134731385,1.59,197.04,196.97,20.0]
[1735134731551,11.48248198,197.04,196.96,9.89248198]
[1735134731745,6.2613,197.06,196.91,13.45738172]
[1735134731950,16.15378198,197.06,196.98,9.89248198]
[1735134732658,23.776884,197.05,196.98,9.89248198]
[1735134732862,23.776884,197.05,196.99,9.89248198]
[1735134734393,21.59,197.09,197.0,9.89248198]
[1735134734554,23.776884,197.08,197.01,9.89248198]
[1735134734755,11.48248198,197.09,197.02,9.89248198]
[1735134735384,1.59,197.09,197.03,9.89248198]
[1735134736174,1.59,197.09,197.02,9.89248198]
[1735134736377,11.48248198,197.09,197.01,9.89248198]
[1735134736765,23.776884,197.09,197.02,9.89248198]
[1735134737357,23.776884,197.07,197.0,9.89248198]
[1735134738060,18.9444,197.12,197.0,9.89248198]
[1735134738266,9.89248198,197.08,197.0,9.89248198]
[1735134739279,23.776884,197.07,197.0,20.0]
[1735134739580,23.776884,197.07,196.99,9.89248198]
[1735134741563,23.776884,197.07,197.0,20.0]
[1735134741966,9.89248198,197.06,196.99,9.89248198]
[1735134742281,9.89248198,197.06,196.98,29.89248198]
[1735134742485,9.89248198,197.05,196.98,29.89248198]
[1735134742698,9.89248198,197.03,196.96,9.89248198]
[1735134746267,23.776884,197.02,196.96,9.89248198]
[1735134747287,6.6198,197.04,196.96,9.89248198]
[1735134750981,9.89248198,197.03,196.96,9.89248198]
[1735134751185,6.6198,197.04,196.93,29.89248198]
[1735134751186,1.6272,197.0,196.93,29.89248198]
[1735134751388,9.89248198,196.99,196.92,9.89248198]
[1735134753588,9.89248198,196.99,196.87,21.08749348]
[1735134753803,9.89248198,196.97,196.89,9.89248198]
[1735134755968,1.6272,197.0,196.93,9.89248198]
[1735134756289,11.51968198,197.0,196.93,9.89248198]
[1735134756499,9.89248198,196.98,196.91,9.89248198]
[1735134756666,1.6272,197.0,196.91,9.89248198]
[1735134756871,9.89248198,196.99,196.91,9.89248198]
[1735134760295,23.776884,196.98,196.91,9.89248198]
[1735134760507,9.89248198,196.95,196.87,9.89248198]
[1735134760698,9.89248198,196.95,196.85,20.0]
[1735134760872,23.776884,196.94,196.86,9.89248198]
[1735134761387,11.42148198,196.93,196.86,9.89248198]
[1735134761697,9.89248198,196.92,196.85,9.89248198]
[1735134762169,9.89248198,196.91,196.84,9.89248198]
[1735134762486,9.89248198,196.91,196.8,21.09501309]
[1735134762487,9.89248198,196.91,196.83,9.89248198]
[1735134762687,9.89248198,196.91,196.84,9.89248198]
[1735134765494,16.40348198,196.89,196.82,9.89248198]
[1735134765685,33.66936598,196.88,196.81,9.89248198]
[1735134766693,6.511,196.89,196.84,9.89248198]
[1735134766884,6.511,196.89,196.85,9.89248198]
[1735134767592,6.511,196.89,196.84,9.89248198]
[1735134767977,6.511,196.89,196.83,9.89248198]
[1735134768778,6.511,196.89,196.84,9.89248198]
[1735134770597,6.511,196.89,196.83,9.89248198]
[1735134778798,1.529,196.93,196.87,9.89248198]
[1735134778984,1.529,196.93,196.89,9.89248198]
[1735134779782,6.6508,196.94,196.89,9.89248198]
[1735134780199,1.612,196.98,196.91,9.89248198]
[1735134780611,1.612,196.98,196.89,20.0]
[1735134780789,1.612,196.98,196.92,9.89248198]
[1735134781291,1.612,196.98,196.91,9.89248198]
[1735134781481,11.50448198,196.98,196.9,9.89248198]
[1735134782002,11.50448198,196.98,196.91,9.89248198]
[1735134782405,1.612,196.98,196.91,9.89248198]
[1735134782981,9.89248198,196.97,196.9,9.89248198]
[1735134783377,33.66936598,196.96,196.89,20.0]
[1735134783696,33.66936598,196.96,196.88,9.89248198]
[1735134784004,9.89248198,196.95,196.88,9.89248198]
[1735134784203,9.89248198,196.96,196.88,9.89248198]
[1735134785203,23.776884,196.95,196.88,9.89248198]
[1735134787604,9.89248198,196.96,196.88,9.89248198]
[1735134788604,11.50448198,196.98,196.9,9.89248198]
[1735134788809,1.612,196.98,196.92,9.89248198]
[1735134789112,1.612,196.98,196.93,9.89248198]
[1735134790203,1.612,196.98,196.91,9.89248198]
[1735134790603,1.612,196.98,196.9,20.0]
[1735134790782,1.612,196.98,196.91,9.89248198]
[1735134791703,1.612,196.98,196.92,9.89248198]
[1735134793103,6.6508,196.99,196.94,9.89248198]
[1735134795902,7.8792,197.03,196.97,9.89248198]
[1735134796095,7.8792,197.03,196.99,9.89248198]
[1735134796510,7.8792,197.03,196.97,9.89248198]
[1735134798508,17.77168198,197.03,196.96,29.89248198]
[1735134800213,17.77168198,197.03,196.96,20.0]
[1735134800518,9.89248198,197.02,196.96,20.0]
[1735134802618,7.8792,197.03,196.96,20.0]
[1735134802619,17.77168198,197.03,196.96,20.0]
[1735134802808,7.8792,197.03,196.97,9.89248198]
[1735134805618,6.2929,197.03,196.98,9.89248198]
[1735134805827,1.5268,197.07,197.01,9.89248198]
[1735134806023,16.07048198,197.08,197.04,9.89248198]
[1735134806024,6.178,197.08,197.04,9.89248198]
[1735134806399,1.5268,197.11,197.05,9.89248198]
[1735134807133,1.5268,197.11,197.06,9.89248198]
[1735134808144,6.178,197.12,197.08,9.89248198]
[1735134809139,6.178,197.12,196.98,0.76097769]
[1735134809343,9.89248198,197.11,197.04,9.89248198]
[1735134809634,6.178,197.12,197.05,9.89248198]
[1735134815238,6.178,197.12,197.03,20.0]
[1735134815533,6.178,197.12,197.05,9.89248198]
[1735134819537,9.89248198,197.11,197.0,13.45081627]
[1735134819838,9.89248198,197.09,197.0,9.89248198]
[1735134820132,9.89248198,197.06,196.99,9.89248198]
[1735134820348,9.89248198,197.06,196.98,9.89248198]
[1735134820661,16.01558198,197.04,196.97,9.89248198]
[1735134820835,16.01558198,197.04,196.96,9.89248198]
[1735134822132,9.89248198,197.02,196.95,9.89248198]
[1735134822442,9.89248198,197.02,196.94,9.89248198]
[1735134823925,9.89248198,197.01,196.93,9.89248198]
[1735134824129,9.89248198,196.99,196.92,9.89248198]
[1735134824642,9.89248198,197.0,196.92,9.89248198]
[1735134826735,9.89248198,196.99,196.92,9.89248198]
[1735134827040,9.89248198,196.99,196.91,9.89248198]
[1735134828516,6.0016,196.97,196.91,9.89248198]
[1735134828720,15.89408198,196.97,196.89,9.89248198]
[1735134828931,1.5961,196.96,196.89,9.89248198]
[1735134830135,1.5961,196.96,196.82,19.76174]
[1735134830136,9.89248198,196.94,196.86,9.89248198]
[1735134830645,9.89248198,196.94,196.87,9.89248198]
[1735134830847,9.89248198,196.95,196.87,9.89248198]
[1735134831142,23.776884,196.94,196.87,9.89248198]
[1735134831338,33.66936598,196.94,196.85,20.0]
[1735134831545,33.66936598,196.94,196.86,9.89248198]
[1735134832646,9.89248198,196.92,196.84,9.89248198]
[1735134833037,33.66936598,196.94,196.86,9.89248198]
[1735134840253,33.66936598,196.94,196.84,9.89248198]
[1735134841360,33.66936598,196.94,196.86,9.89248198]
[1735134841728,23.776884,196.94,196.86,9.89248198]
[1735134841934,9.89248198,196.95,196.86,9.89248198]
[1735134842437,9.89248198,196.95,196.88,9.89248198]
[1735134842757,6.0016,196.97,196.94,9.89248198]
[1735134844862,7.7226,197.01,196.94,9.89248198]
[1735134845864,7.7226,197.01,196.96,9.89248198]
[1735134848775,7.9997,197.06,196.98,9.89248198]
[1735134849069,33.66936598,197.05,196.98,9.89248198]
[1735134850255,33.66936598,197.05,196.96,9.89248198]
[1735134850463,9.89248198,197.03,196.96,9.89248198]